Cogmind - Beta 16 --- EXPLORER MODE // 2025.12.02 @ 16:25:13 Player: K.K.Y. Result: Destroyed by PE-53V(R) with Subdweller Laser Performance ------------- Evolutions (0) 0 Regions Visited (3) 600 Robots Destroyed (34) 170 Value Destroyed (800) 800 Prototype IDs (12) 240 Alien Tech Used (0) 0 Bonus (0) 0 TOTAL SCORE: 1810 Bonus ------- None Cogmind --------- Core Integrity 0/250 Matter 298/300 Energy 86/100 System Corruption 1% Temperature Cool (6) Movement Treading (160) Location -10/Subcaves Parts ------- > --- POWER (1) -------- (None) > --- PROPULSION (2) --- Light Treads Spiked Treads > --- UTILITY (3) ------ Large Storage Unit > --- WEAPON (2) ------- Beam Rifle Subdweller Machine Gun > --- INVENTORY (15) --- Light Treads Light Treads Medium Storage Unit Improved Terrain Scanner Utility Shielding Utility Shielding Light Armor Plating Gun Armor Scrap Shield Beam Rifle Flamer Peak State ------------ > --- POWER ------------ Makeshift Power Source > --- PROPULSION ------- Light Treads > --- UTILITY ---------- Large Storage Unit Improved Terrain Scanner > --- WEAPON ----------- Barrage Gun Makeshift Sword > --- INVENTORY -------- Light Treads Light Treads Light Treads Spiked Treads Medium Storage Unit Improved Terrain Scanner Utility Shielding Utility Shielding Light Armor Plating Scrap Shield Beam Rifle Beam Rifle Flamer [Rating: 18] Favorites ----------- Power Ion Engine Engine Ion Engine Propulsion Light Treads Treads Light Treads Utility Large Storage Unit Device Improved Terrain Scanner Storage Large Storage Unit Weapon Beam Rifle Energy Gun Beam Rifle Ballistic Gun Light Assault Rifle Ballistic Cannon Battle Cannon Special Weapon Mining Laser Slashing Weapon Makeshift Sword Build | -11 -10 -10 -10 ------- Run | Yrd Mat Min Sub Slots Evolved 1 | . 1 . . Power . | . . . . Propulsion . | . . . . Utility 1 | . 1 . . Weapon . | . . . . Parts Attached 26 | 8 1 2 15 Power 2 | 1 . . 1 Engine 2 | 1 . . 1 Core . | . . . . Reactor . | . . . . Propulsion 7 | 2 . . 5 Treads 7 | 2 . . 5 Leg . | . . . . Wheel . | . . . . Hover . | . . . . Flight . | . . . . Utility 4 | 3 1 . . Device 2 | 2 . . . Storage 2 | 1 1 . . Processor . | . . . . Hackware . | . . . . Protection . | . . . . Artifact . | . . . . Weapon 13 | 2 . 2 9 Energy Gun 3 | 1 . 2 . Energy Cannon . | . . . . Ballistic Gun 4 | 1 . . 3 Ballistic Cannon 2 | . . . 2 Launcher . | . . . . Special Weapon 3 | . . . 3 Impact Weapon . | . . . . Slashing Weapon 1 | . . . 1 Piercing Weapon . | . . . . Special Melee Weapon . | . . . . Unidentified Prototypes . | . . . . Parts Lost 12 | . . . 12 Power 2 | . . . 2 Propulsion 3 | . . . 3 Utility 1 | . . . 1 Weapon 6 | . . . 6 Highest Loss Streak 4 | . . . 4 To Critical Strikes 1 | . . . 1 Average Backups 8 | 4 5 7 10 Power . | . . . . Propulsion 2 | 1 1 2 3 Utility 4 | 1 2 4 5 Weapon 1 | . 1 1 2 Tool/Special . | . . . . Unused Backups 5 | . . . 5 Power . | . . . . Propulsion . | . . . . Utility 5 | . . . 5 Weapon . | . . . . Tool/Special . | . . . . Average Slot Usage (%) 82 | . 88 98 69 Engine 8 | . 12 12 5 Treads 19 | . 25 25 14 Device 10 | . 12 12 8 Storage 20 | . 20 25 17 Energy Gun 14 | . 8 23 8 Ballistic Gun 2 | . 8 . 2 Ballistic Cannon 2 | . . . 5 Special Weapon 2 | . . . 5 Peak Build Rating 18 | 9 10 12 18 Average Rating 10 | 5 9 11 10 On Entrance 7 | . 9 9 12 Avg Prop Armor Cover (%) . | . . . . Naked Turns . | . . . . Heaviest Build 42 | 19 39 42 42 Greatest Support 40 | 40 40 40 40 Greatest Overweight (x) 8 | 1 . 1 8 Average Overweight (x) 1 | . . . 1 Largest Inventory Capacity 15 | 10 15 15 15 Average Capacity 14 | 5 13 15 15 Most Carried 15 | 6 9 9 15 Average Carried 8 | 4 5 7 11 Final Capacity 15 | 10 15 15 15 Final Carried 12 | 3 9 7 12 Class Distribution -------------------- 100% | Hacker-Mutant Dominant Class ---------------- Hacker-Mutant | -10/Materials Hacker-Mutant | -10/Mines Hacker-Mutant | -10/Subcaves Resources | -11 -10 -10 -10 ----------- Run | Yrd Mat Min Sub Matter Collected 858 | 251 72 36 499 Remotely . | . . . . Salvage Created 1070 | 224 318 71 457 Parts 79 | 20 18 10 31 Haulers Intercepted 2 | . 2 . . Recyclers Shooed 1 | . 1 . . Parts Field Recycled . | . . . . Retrieved Matter . | . . . . Parts Self-Destructed . | . . . . Prevented . | . . . . Parts Restored . | . . . . Kills | -11 -10 -10 -10 ------- Run | Yrd Mat Min Sub Combat Hostiles Destroyed 20 | . 3 2 15 Guns 12 | . 3 2 7 Cannons 8 | . . . 8 Classes Destroyed 9 | 2 3 2 2 Worker 1 | . 1 . . Builder 1 | . . 1 . Tunneler 8 | 6 . 2 . Hauler 2 | . 2 . . Recycler 2 | 1 1 . . Swarmer 2 | . . 2 . Grunt 3 | . 3 . . Cobbler 1 | . . . 1 Subdweller 15 | . . . 15 Best Kill Streak 6 | 6 3 2 2 Combat Bots Only 3 | . 3 2 2 Max Kills in Single Turn 1 | 1 1 1 1 Gunslinging . | . . . . Exploded . | . . . . Melee . | . . . . Uniques/NPCs Destroyed . | . . . . Combat | -11 -10 -10 -10 -------- Run | Yrd Mat Min Sub Hostile Shots Fired 128 | . 10 10 108 Missed 29 | . 4 2 23 Hits 99 | . 6 8 85 Projectile 99 | . 6 8 85 AOE 4 | . . . 4 Critical Strikes 2 | . . . 2 Damage Taken 1452 | . 105 35 1312 Core 260 | . 22 . 238 Absorbed by Shields . | . . . . Ignored by Resistances 860 | . 64 26 770 Core Remaining (%) 100 | 100 . . . Volleys Fired 138 | 12 15 7 104 Largest 2 | 2 2 2 2 Hottest 156 | 60 60 112 156 Shots Fired 213 | 24 30 14 145 Gun 158 | 24 30 14 90 Cannon 42 | . . . 42 Launcher . | . . . . Special 13 | . . . 13 Kinetic 104 | 12 15 . 77 Thermal 82 | . . 14 68 Explosive . | . . . . Electromagnetic 27 | 12 15 . . Robot Hit Streak 30 | 19 30 17 20 Robot Miss Streak 2 | 1 2 1 1 Penetration Max . | . . . . Secondary Targets 1 | . . . 1 Max Gunslinging Chain 1 | . . . 1 Shots Hit Robots 146 | 19 24 11 92 Core Hits 58 | 9 11 5 33 Critical Kills . | . . . . Critical Parts Destroyed . | . . . . Critical Strikes 9 | . . . 9 Burn 4 | . . . 4 Blast 5 | . . . 5 Melee Attacks . | . . . . Impact . | . . . . Slashing . | . . . . Piercing . | . . . . Sneak Attacks . | . . . . Combat Hostiles . | . . . . Follow-up Attacks . | . . . . Damage Inflicted 2471 | 247 330 195 1699 Guns 1401 | 199 258 160 784 Cannons 795 | . . . 795 Explosions 120 | 48 72 . . Melee . | . . . . Ramming 35 | . . 35 . Kinetic 1291 | 51 80 . 1160 Thermal 819 | 48 72 160 539 Explosive . | . . . . Electromagnetic 326 | 148 178 . . Impact . | . . . . Slashing . | . . . . Piercing . | . . . . Highest Corruption 1 | . 1 1 1 Average Corruption 1 | . 1 1 1 Corruption Purged . | . . . . Corruption Blocked . | . . . . Effects 29 | . 2 11 16 Message Errors 8 | . 1 2 5 Matter Fused 8 | . 1 4 3 Heat Flow Errors 6 | . . 3 3 Energy Discharges 3 | . . 1 2 Data Loss (minor) 3 | . . . 3 Data Loss (major) 1 | . . 1 . Overload Shots . | . . . . Overflow Damage . | . . . . Projectiles . | . . . . Explosions . | . . . . Melee . | . . . . Knockbacks 5 | . . . 5 Impact . | . . . . Kinetic 5 | . . . 5 Secondary . | . . . . Self-Inflicted Damage 22 | . 22 . . Shots 1 | . 1 . . Rammed 5 | . . 5 . Targets Rammed 6 | . . 6 . Kicked . | . . . . Crushed 1 | . . 1 . Highest Temperature 271 | 20 58 271 225 Average Temperature 58 | 9 22 85 88 Received Heat Transfer 536 | . 36 . 500 Siege Activations . | . . . . Martial Activations . | . . . . Shielding Activations . | . . . . Robots Disrupted . | . . . . Combat Hostiles . | . . . . Robots Corrupted . | . . . . Combat Hostiles . | . . . . Parts Fried . | . . . . Impact Corruptions . | . . . . Robots Melted . | . . . . Combat Hostiles . | . . . . Parts Melted 3 | . . 1 2 Heat Transferred 2126 | . 100 407 1619 Parts Sabotaged . | . . . . Parts Stolen . | . . . . Parts Stripped . | . . . . Power Chain Reactions 3 | 1 2 . . Alert | -11 -10 -10 -10 ------- Run | Yrd Mat Min Sub Maximum Alert Level . | . . . . Low Security (%) 100 | 100 100 100 . Level 1 . | . . . . Level 2 . | . . . . Level 3 . | . . . . Level 4 . | . . . . Level 5 . | . . . . High Security . | . . . . Max Security . | . . . . Peak Influence 70 | 10 70 50 . Initial 2 | . 2 . . Average 2 | 1 6 1 . Influence Increases 225 | 35 122 68 . Destroy 0b10 Robot/C 100 | . 60 40 . Destroy 0b10 Robot/NC 70 | 35 20 15 . Destroy Leader 24 | . 14 10 . Successful Hack 13 | . 10 3 . Destroy Structure 3 | . 3 . . Lose Combat Pursuer 15 | . 15 . . Influence Decreases 225 | 30 127 68 . Entered New Map 3 | . 3 . . Time Decay 222 | 30 124 68 . Squads Dispatched 1 | . 1 . . Investigation 1 | . 1 . . Extermination . | . . . . Reinforcement . | . . . . Assault . | . . . . Garrison . | . . . . Intercept . | . . . . Searches Triggered . | . . . . Construction Impeded . | . . . . Haulers Reinforced . | . . . . Active Scanning Responses . | . . . . Cargo Convoy Interrupts . | . . . . Stealth | -11 -10 -10 -10 --------- Run | Yrd Mat Min Sub Distress Signals 1 | . 1 . . Communications Jammed . | . . . . Distress Signals . | . . . . Times Spotted 22 | . 3 2 17 Peak Tracking Total 3 | . 3 2 3 Tactical Retreats 1 | . 1 . . Traps | -11 -10 -10 -10 ------- Run | Yrd Mat Min Sub Traps Triggered 3 | . 3 . . Indirectly . | . . . . Trap Hack Attempts . | . . . . Triggered . | . . . . Disarmed . | . . . . Reprogrammed . | . . . . Reused . | . . . . Traps Extracted . | . . . . Installed . | . . . . Triggered . | . . . . Machines | -11 -10 -10 -10 ---------- Run | Yrd Mat Min Sub Machines Disabled 1 | . . . 1 Max in Single Turn 1 | . . . 1 Machines Repaired . | . . . . Machines Dismantled . | . . . . Machines Sabotaged . | . . . . Overloaded Fab Kills . | . . . . Hacking | -11 -10 -10 -10 --------- Run | Yrd Mat Min Sub Machines Accessed 5 | . 2 1 2 Terminals 3 | . 2 1 . Fabricators . | . . . . Repair Stations . | . . . . Recycling Units . | . . . . Scanalyzers . | . . . . Garrison Access . | . . . . Total Hacks 10 | . 4 1 5 Successful 8 | . 2 1 5 Failed 2 | . 2 . . Catastrophic 2 | . 2 . . Database Lockouts . | . . . . Manual 2 | . 1 1 . Terminals 5 | . 4 1 . Fabricators . | . . . . Repair Stations . | . . . . Recycling Units . | . . . . Scanalyzers . | . . . . Garrison Access . | . . . . Terminal Hacks 8 | . 2 1 5 Record 4 | . . . 4 Terminal Index 1 | . 1 . . Zone Layout 2 | . 1 1 . Proto ID Catalog 1 | . . . 1 Fabricator Hacks . | . . . . Repair Station Hacks . | . . . . Recycling Unit Hacks . | . . . . Scanalyzer . | . . . . Garrison Access Hacks . | . . . . Unauthorized Hacks . | . . . . Terminals . | . . . . Fabricators . | . . . . Repair Stations . | . . . . Recycling Units . | . . . . Scanalyzers . | . . . . Garrison Access . | . . . . Data Cores Recovered . | . . . . Used . | . . . . Hacking Detections 2 | . 1 1 . Full Trace Events 1 | . 1 . . Feedback Events 1 | . 1 . . Corruption 1 | . 1 . . Feedback Blocked . | . . . . Robot Schematics Acquired . | . . . . Robots Built . | . . . . Authchips . | . . . . Time . | . . . . Total Robot Build Rating . | . . . . Part Schematics Acquired . | . . . . Parts Built . | . . . . Authchips . | . . . . Time . | . . . . Total Part Build Rating . | . . . . Part Studies Acquired . | . . . . Parts Repaired . | . . . . Time . | . . . . Parts Recycled . | . . . . Recycled Matter . | . . . . Retrieved Matter . | . . . . Retrieved Components . | . . . . Parts Scanalyzed . | . . . . Part Schematics Acquired . | . . . . Parts Damaged . | . . . . Bothacking | -11 -10 -10 -10 ------------ Run | Yrd Mat Min Sub Used RIF Installer . | . . . . Robots Hacked . | . . . . Non-combat . | . . . . Combat . | . . . . Robot Hacks Applied . | . . . . Relay Couplers Released . | . . . . Fabnet Peak Effective % . | . . . . Robots Rewired . | . . . . Allies Hacked . | . . . . Hacks Repelled . | . . . . Allies | -11 -10 -10 -10 -------- Run | Yrd Mat Min Sub Total Allies . | . . . . Largest Group . | . . . . Highest-Rated Group . | . . . . Highest-Rated Ally . | . . . . Total Orders . | . . . . Ally Attacks . | . . . . Total Damage . | . . . . Kills . | . . . . Allies Corrupted . | . . . . Allies Melted . | . . . . Intel | -11 -10 -10 -10 ------- Run | Yrd Mat Min Sub Active Infowar (turns) 4464 | 145 618 1971 1730 Terrain 4464 | 145 618 1971 1730 Robot Analysis Total . | . . . . Derelict Logs Recovered 6 | . . 3 3 Drone Launches . | . . . . Drone Recoveries . | . . . . Exploration | -11 -10 -10 -10 ------------- Run | Yrd Mat Min Sub Turns Passed 5375 | 212 618 1971 2574 Spaces Moved 2285 | 118 344 807 1016 Core 307 | 117 . . 190 Treads 1978 | 1 344 807 826 Legs . | . . . . Wheels . | . . . . Hover . | . . . . Flight . | . . . . Fastest Speed 50 | 50 160 160 160 Average Speed 206 | 64 160 231 219 Slowest Speed 450 | 160 160 240 450 Overloaded Moves . | . . . . Propulsion Burnouts . | . . . . Robots Hopped . | . . . . Potential Cave-ins . | . . . . Cave-ins Triggered . | . . . . Exploration Rate (%) 57 | 4 58 99 69 Regions Visited 3 Branch Regions 2 Pre-discovered Areas 3 | . . 1 2 Known Exits Taken 3 | 1 1 1 . Unknown Exits Taken . | . . . . Scrap Searched 11 | . . . 11 Spaces Dug . | . . . . Terrain Destroyed 5 | 2 3 . . Melee . | . . . . Projectile . | . . . . AOE 5 | 2 3 . . Terrain Rammed . | . . . . Walls Destroyed . | . . . . Machines Disabled . | . . . . Actions | -11 -10 -10 -10 --------- Run | Yrd Mat Min Sub Total 2694 | 229 387 889 1189 Wait 203 | 86 17 68 32 Move 2282 | 117 343 806 1016 Hop . | . . . . Pick Up 24 | 6 7 . 11 Fast Attach 7 | 4 . . 3 Attach 18 | 3 1 2 12 Detach 7 | . 2 . 5 Swap 6 | 1 . . 5 Drop 3 | . 2 . 1 Fire 138 | 12 15 7 104 Melee . | . . . . Ram . | . . . . Kick . | . . . . Crush 6 | . . 6 . Escape Stasis . | . . . . Rewire . | . . . . Trap . | . . . . Miscellaneous . | . . . . Route ------- -11/Scrapyard -10/Materials (discovered 3 exits: *Mat x2 / *Min) -10/Mines (discovered 4 exits: *Mat x2 / *Exi / *Sub) -10/Subcaves (discovered 2 exits: *Mat x2) History --------- Turn | Location | Event 8 | -11/Scrapyard | Identified exit to Materials 8 | -11/Scrapyard | Discovered exit to Materials (range 16) 213 | -11/Scrapyard | Entered Materials 213 | -10/Materials | Evolved 1 slot: Utility x1 214 | -10/Materials | Met a group of wandering Federalists 309 | -10/Materials | Build established: Hacker-Mutant 512 | -10/Materials | Identified exit to Materials 512 | -10/Materials | Discovered exit to Materials (range 9) 651 | -10/Materials | Discovered exit to Materials (range 12) 785 | -10/Materials | Identified exit to Mines 785 | -10/Materials | Discovered exit to Mines (range 14) 831 | -10/Materials | Entered Mines 906 | -10/Mines | Learned location of Storage (-7) 1011 | -10/Mines | Learned Materials emergency access door positions 1362 | -10/Mines | Learned 4 Materials zone layouts 1424 | -10/Mines | Discovered exit to Materials (range 11) 1589 | -10/Mines | Learned Materials emergency access door positions 1589 | -10/Mines | Discovered exit to Materials (range 5) 1648 | -10/Mines | YI-UF0 nonchalantly dropped a Grenade Launcher on the ground 1678 | -10/Mines | Deemed a non-threat by the Exiles lab entrance 1678 | -10/Mines | Identified exit to Exiles 1678 | -10/Mines | Discovered exit to Exiles (range 5) 2454 | -10/Mines | Identified exit to Subcaves 2454 | -10/Mines | Discovered exit to Subcaves (range 6) 2802 | -10/Mines | Entered Subcaves 2853 | -10/Subcaves | Visited Clippyterm 2860 | -10/Subcaves | Learned Factory emergency access door positions 2860 | -10/Subcaves | Learned Factory stockpile data 3397 | -10/Subcaves | Identified exit to Materials 3397 | -10/Subcaves | Discovered exit to Materials (range 12) 3587 | -10/Subcaves | Shifting Twisted Machinery released Barrage Gun 3588 | -10/Subcaves | Shifting Twisted Machinery released Barrage Gun 3891 | -10/Subcaves | Shifting Twisted Machinery released Shrapnel Trap 3969 | -10/Subcaves | Lost 3 parts (1p1n1w) 4323 | -10/Subcaves | Ambushed by Subdweller buried in earth 4340 | -10/Subcaves | Core integrity fell below 50% 4364 | -10/Subcaves | Lost 4 parts (1p1n2w) 4706 | -10/Subcaves | Discovered exit to Materials (range 8) 4887 | -10/Subcaves | Learned location of Mines (-9) 4892 | -10/Subcaves | Visited 4L-MR0's lab 4983 | -10/Subcaves | Found Gun Armor 5159 | -10/Subcaves | Core integrity fell below 20% 5376 | -10/Subcaves | Destroyed by PE-53V(R) with Subdweller Laser Last Messages --------------- 04939_ 4L-MR0 mumbles: "Who knows where that last prototype ended up, probably tossed aside somewhere as if it were useless junk..." 04973_ Testing Chamber breached. 04978_ System corrupted: Energy discharge (-30). 04983_ Acquired Gun Armor. 05030_ System corrupted: Matter fused (-8). 05164_ Battle Rifle destroyed. 05171_ AE-7EO(R) destroyed. 05171_ Switching to secondary target: 8B-EBB(R). 05177_ 8B-EBB(R) suffers critical hit (Burn). 05177_ 8B-EBB(R) destroyed. 05184_ Acquired 47 matter. 05189_ Acquired 49 matter. 05353_ Acquired 43 matter. 05356_ Acquired Sub. Machine Gun. 05358_ Acquired 10 matter. 05361_ PE-53V(R): "SUB#$%&!" 05362_ Subatomizers dissect the Sub. Monowheel. 05363_ System corrupted: Energy discharge (-29). Map ----- +----------------------------------------------------+ | ????????????????????????????????????????????#?#?#? | | ???????????????????????????#?????????????????#???? | | ?????????????????????????????????????????????????? | | ?????????????????????????????????????????????#??#? | | ????????????????????????????????????#????????????? | | ????????????????????????????????????????##???????? | | ????????????????????????????????????????####??#??? | | ????????????????????????????#??????######???###### | | ???????###################?#???????#" ##### "## | | ??????## # ## # # # ## ####????#?##" "" | | ??????# #?#??##### | | ??????# ##??? #?###" =! | | ##????## # # ##### #??? #??##""" ] & | | ##???# #######???#### #??? #??# "" * " | | ##### #????????????# #### #??## #""" "" | | ##????????????# ## #??## ###" "# | | #???###??????## #?# #??# ### ### | | ###???# ##????## ### #??# " ##""#?# | | ##?##### #??### #???## "####"#?? | | # ##?## #?## ### ! ##### "##"##?? | | # ##?## #?# #?## !% ## ## ?#? | | # #??# ### ##?####% ## #####????? | | #??# ## ###### = & ## #????????? | | #?### ### # # # !&& ## #????#??#? | | ### ## # R # ##???#????? | | < ## ##@# ### ###?????#??? | | #? ##### ##?## #???#???? | | ## ##### #### ##? #?? #??## #??????#? | | #####???#####??####??? ? ##???# ######???????? | | ##????????????????????? #????###?????????#??? | | #??????????????????????# # ###???????????????????? | | ##?##??????????????????## # ???????#???????????#?? | | ## #??????????????????? ?????????????????????#?? | | #??????????????????? ???????????????????????? | | #??????????????????# ????????????????????????? | | ##??????????????????##????????????????????????? | | #?????????????????????????????????????????????? | | ##?????????????????????????????????????????????? | | ##??????????????????????????????????????????????? | | #???????????????????????????????????????????????? | | ##???????????????????????????????????????????????? | | #???????????????????????????????????#????????????? | | ##??????????????????? ???????????#???????#???????? | | #???????????????????? ? ???##???????????????????? | | ##????????????????????# ???# ??????????#????????? | | ##?????????????????#?## ## ???????????#??#????? | | #??????????????????## ? ???????????#??????#?? | | #???????????????????%% ?# ?#????????#?????????? | | ##??????????????????##%=## #???????????#####?#?#? | | ##??????????????????# &!# ?????? ????## ###??? | +----------------------------------------------------+ Best States ------------- Heat Dissipation 25 Energy Generation 15 Energy Capacity 250 Matter Stores 300 Matter Capacity 300 Sight Range 16 Terrain Scan Range 16 Terrain Scan Density 10 Resistance: KI 35 Resistance: TH 35 Resistance: EX 35 Resistance: EM 35 Resistance: I 35 Resistance: S 35 Resistance: P 35 Evasion (%) 50 Recoil Reduction 2 Offensive Hacking 20 Item Schematics ----------------- None Robot Schematics ------------------ None Fabricated ------------ Nothing Repaired ---------- Nothing Studied --------- None Alien Tech Used ----------------- None Achievements -------------- None Challenges ------------ None Game ------ Seed ArmoredMiniMegatreads Manual? 0 Play Time 00:19:27 Cumulative 155.9 hours Start 2025.12.02 @ 16:09:32 End 2025.12.02 @ 16:25:13 Sessions 1 Manual Loads 0 Difficulty Explorer Special Mode None Game No. 200 Rogue 0 Adventurer 0 Explorer 200 Win Type - Total 0 Types 0/0/0/0/0/0/0/0/0/0 Lore% 70 Gallery% 66 Achievement% 52 Wizard Run 0 Options --------- Layout 1 ASCII 0 Keyboard 0 Movement Mouse Keybinds 0 Fullscreen 1 Font 24/Smallcaps Map View 50x35 Zoom Use 0% Tactical HUD 1 Map Filters NONE Filters NONE Steam 1 RUN: cee9b2dc-1847-40ff-9056-9b16f1703565